Cogmind - Beta 15 @@@ ROGUE MODE // 2025.07.30 @ 14:04:40 Player: Yam Yam Result: Destroyed by G-67 Veteran with Plasma Rifle Performance ------------- Evolutions (6) 3000 Regions Visited (7) 1400 Robots Destroyed (31) 155 Value Destroyed (1249) 1249 Prototype IDs (1) 20 Alien Tech Used (0) 0 Bonus (800) 800 TOTAL SCORE: 6624 Bonus ------- Registered with UFD 300 Met Optimus in HQ 500 Cogmind --------- Core Integrity 0/1150 Matter 214/300 Energy 427/665 System Corruption 0% Temperature Cool (0) Movement Rolling (110) Ox1 Location -4/Factory Parts ------- > --- POWER (5) -------- Neutrino Core > --- PROPULSION (4) --- Centrium Wheel > --- UTILITY (5) ------ Energy Well > --- WEAPON (5) ------- (None) > --- INVENTORY (5) ---- (None) Peak State ------------ > --- POWER ------------ Light Nuclear Core Light Nuclear Core Micro Fission Core > --- PROPULSION ------- Armored Medium Treads Antigrav System Antigrav System Antigrav System > --- UTILITY ---------- Improved Heat Sink Improved Heat Sink Large Storage Unit Visual Processing Unit Visual Processing Unit > --- WEAPON ----------- High-powered Shock Rifle High-powered Shock Rifle Tesla Rifle Tesla Rifle Autogun > --- INVENTORY -------- (None) [Rating: 71] Favorites ----------- Power Light Nuclear Core Engine Subdweller Power Source Power Core Light Nuclear Core Propulsion Flight Unit Treads Armored Medium Treads Leg Carbon-fiber Leg Wheel Wheel Hover Unit Antigrav System Flight Unit Flight Unit Utility Visual Processing Unit Device Improved Heat Sink Storage Large Storage Unit Processor Visual Processing Unit Hackware Hacking Suite Weapon Subdweller Shrapnel Launcher Energy Gun Tesla Rifle Ballistic Gun Light Assault Rifle Ballistic Cannon Enhanced Gauss Cannon Launcher Subdweller Shrapnel Launcher Build | -11 -10 -10 -7 -5 -5 -5 -4 ------- Run | Yrd Mat Sub Scr Fac Upp Upp Fac Slots Evolved 12 | . . . . 10 . . 2 Power 4 | . . . . 2 . . 2 Propulsion 2 | . . . . 2 . . . Utility 3 | . . . . 3 . . . Weapon 3 | . . . . 3 . . . Parts Attached 65 | 8 6 1 5 36 3 . 6 Power 11 | 2 1 1 . 5 . . 2 Engine 4 | 2 . 1 . 1 . . . Core 7 | . 1 . . 4 . . 2 Reactor . | . . . . . . . . Propulsion 20 | 4 1 . 1 11 1 . 2 Treads 1 | . . . . 1 . . . Leg 4 | . . . . 2 1 . 1 Wheel 7 | 4 . . . 2 . . 1 Hover 3 | . . . . 3 . . . Flight 5 | . 1 . 1 3 . . . Utility 13 | . 2 . 1 7 2 . 1 Device 8 | . . . . 6 2 . . Storage 2 | . . . 1 . . . 1 Processor 2 | . 1 . . 1 . . . Hackware 1 | . 1 . . . . . . Protection . | . . . . . . . . Artifact . | . . . . . . . . Weapon 21 | 2 2 . 3 13 . . 1 Energy Gun 12 | 1 1 . . 10 . . . Energy Cannon . | . . . . . . . . Ballistic Gun 6 | 1 1 . 1 3 . . . Ballistic Cannon 1 | . . . . . . . 1 Launcher 2 | . . . 2 . . . . Special Weapon . | . . . . . . . . Impact Weapon . | . . . . . . . . Slashing Weapon . | . . . . . . . . Piercing Weapon . | . . . . . . . . Special Melee Weapon . | . . . . . . . . Unidentified Prototypes 1 | . . . . . . . 1 Corrupted Parts 2 | . . . . 2 . . . System Corruption 7 | . . . . 7 . . . Parts Lost 39 | . . . . 29 5 . 5 Power 5 | . . . . 3 1 . 1 Propulsion 14 | . . . . 10 2 . 2 Utility 6 | . . . . 4 1 . 1 Weapon 14 | . . . . 12 1 . 1 Highest Loss Streak 9 | . . . . 9 4 . 1 To Critical Strikes . | . . . . . . . . Average Backups 2 | 2 4 4 3 . . . . Power . | . 1 . . . . . . Propulsion . | 2 2 1 . . . . . Utility . | . . 1 1 . . . . Weapon 1 | . . 1 2 . . . . Tool/Special . | . . . . . . . . Unused Backups 12 | . 4 2 6 . . . . Power 6 | . 3 . 3 . . . . Propulsion 3 | . 1 2 . . . . . Utility 3 | . . . 3 . . . . Weapon . | . . . . . . . . Tool/Special . | . . . . . . . . Average Slot Usage (%) 69 | . 88 85 89 63 10 11 6 Engine 3 | . 10 8 4 . . . . Core 3 | . 3 5 . 8 . . 1 Wheel 1 | . 19 . . . . . . Hover 1 | . . . . 3 . . . Flight 14 | . 4 14 28 6 . . . Device 2 | . . . . 5 3 5 1 Storage 5 | . . . 8 5 . . . Processor 10 | . 9 14 14 10 1 . . Hackware 3 | . 10 14 5 . . . . Energy Gun 4 | . 10 14 . 9 1 . . Ballistic Gun 9 | . 17 14 14 6 . . . Launcher 5 | . . . 13 . . . . Peak Build Rating 71 | 5 11 11 14 71 23 11 18 Average Rating 17 | 3 9 10 10 33 5 11 8 On Entrance 10 | . 5 11 10 9 23 11 11 Naked Turns 154 | . . . . . 91 . 63 Heaviest Build 60 | 6 7 7 31 60 3 1 19 Greatest Support 33 | 20 20 4 8 33 16 16 25 Greatest Overweight (x) 13 | . 1 1 3 13 . . 4 Average Overweight (x) 1 | . . 1 1 2 . . . Largest Inventory Capacity 15 | 5 5 5 15 15 15 5 5 Average Capacity 10 | 5 5 5 11 15 5 5 5 Most Carried 7 | 5 5 5 5 7 3 . 3 Average Carried 2 | 2 4 4 3 . . . . Final Capacity 15 | 5 5 5 15 15 5 5 5 Final Carried 5 | 5 5 5 3 . . . . Class Distribution -------------------- 42% | Mutant 39% | Scavenger-Mutant 17% | Scavenger-Skirmisher Dominant Class ---------------- Scavenger-Mutant | -10/Materials Scavenger-Mutant | -10/Subcaves Mutant | -7/Scraptown Scavenger-Skirmisher | -5/Factory Mutant | -5/Upper Caves Mutant | -5/Upper Caves Mutant | -4/Factory Resources | -11 -10 -10 -7 -5 -5 -5 -4 ----------- Run | Yrd Mat Sub Scr Fac Upp Upp Fac Matter Collected 976 | 278 78 17 10 548 . . 45 Remotely 168 | . . . . 168 . . . Salvage Created 1300 | 107 147 96 . 905 . . 45 Parts 87 | 8 16 12 . 47 . . 4 Haulers Intercepted . | . . . . . . . . Recyclers Shooed . | . . . . . . . . Parts Field Recycled . | . . . . . . . . Retrieved Matter . | . . . . . . . . Parts Self-Destructed 7 | . . 5 . . 2 . . Prevented . | . . . . . . . . Kills | -11 -10 -10 -7 -5 -5 -5 -4 ------- Run | Yrd Mat Sub Scr Fac Upp Upp Fac Combat Hostiles Destroyed 26 | 1 5 2 . 17 . . 1 Guns 22 | 1 5 2 . 14 . . . Cannons 1 | . . . . . . . 1 Classes Destroyed 8 | 3 1 1 . 2 . . 1 Worker 3 | 1 . . . 2 . . . Builder 1 | . . . . . . . 1 Tunneler 1 | 1 . . . . . . . Swarmer 8 | . 3 . . 5 . . . Grunt 10 | 1 2 . . 6 . . 1 Duelist 1 | . . . . 1 . . . Programmer 5 | . . . . 5 . . . Subdweller 2 | . . 2 . . . . . Best Kill Streak 5 | 2 5 2 . 5 . . 2 Combat Bots Only 5 | 1 5 2 . 5 . . 1 Max Kills in Single Turn 2 | 1 2 1 . 1 . . 1 Gunslinging 1 | . 1 . . . . . . Exploded . | . . . . . . . . Melee . | . . . . . . . . Uniques/NPCs Destroyed . | . . . . . . . . Combat | -11 -10 -10 -7 -5 -5 -5 -4 -------- Run | Yrd Mat Sub Scr Fac Upp Upp Fac Hostile Shots Fired 533 | 10 8 4 . 239 50 . 222 Missed 211 | 3 1 3 . 72 21 . 111 Hits 322 | 7 7 1 . 167 29 . 111 Melee 4 | . . . . 3 . . 1 Projectile 318 | 7 7 1 . 164 29 . 110 Critical Strikes 9 | . . . . 3 . . 6 Damage Taken 6124 | 75 79 19 . 3406 484 . 2061 Core 2054 | . . . . 680 208 . 1166 Absorbed by Shields . | . . . . . . . . Core Remaining (%) 70 | 100 . . 100 . . 11 . Volleys Fired 132 | 9 7 7 . 93 3 . 13 Largest 5 | 2 2 2 . 5 2 . 1 Hottest 273 | 60 60 50 . 273 138 . 47 Shots Fired 229 | 18 14 14 . 166 4 . 13 Gun 215 | 18 14 14 . 165 4 . . Cannon 13 | . . . . . . . 13 Launcher 1 | . . . . 1 . . . Special . | . . . . . . . . Kinetic 110 | 9 7 7 . 74 . . 13 Thermal 60 | . . 7 . 49 4 . . Explosive . | . . . . . . . . Electromagnetic 59 | 9 7 . . 43 . . . Robot Hit Streak 32 | 5 18 32 . 8 9 . 12 Robot Miss Streak 8 | 1 . . . 8 . . 3 Penetration Max . | . . . . . . . . Secondary Targets 5 | . 1 . . 4 . . . Max Gunslinging Chain 1 | . 1 . . 1 . . . Shots Hit Robots 142 | 13 13 14 . 90 4 . 8 Core Hits 69 | 4 7 5 . 46 . . 7 Critical Kills 2 | . 1 . . 1 . . . Critical Parts Destroyed . | . . . . . . . . Critical Strikes 9 | . 1 . . 7 . . 1 Burn 5 | . . . . 5 . . . Destroy 2 | . 1 . . 1 . . . Blast 1 | . . . . . . . 1 Corrupt 1 | . . . . 1 . . . Melee Attacks . | . . . . . . . . Impact . | . . . . . . . . Slashing . | . . . . . . . . Piercing . | . . . . . . . . Sneak Attacks . | . . . . . . . . Combat Hostiles . | . . . . . . . . Follow-up Attacks . | . . . . . . . . Damage Inflicted 2806 | 152 135 105 . 1970 71 . 373 Guns 2231 | 152 135 105 . 1768 71 . . Cannons 301 | . . . . . . . 301 Explosions 244 | . . . . 202 . . 42 Melee . | . . . . . . . . Ramming 30 | . . . . . . . 30 Kinetic 1104 | 67 51 47 . 638 . . 301 Thermal 1166 | . . 58 . 995 71 . 42 Explosive . | . . . . . . . . Electromagnetic 506 | 85 84 . . 337 . . . Impact . | . . . . . . . . Slashing . | . . . . . . . . Piercing . | . . . . . . . . Highest Corruption 10 | . . . . 10 10 10 . Average Corruption 5 | . . . . 4 10 10 . Corruption Purged . | . . . . . . . . Corruption Blocked . | . . . . . . . . Effects 24 | . . . . 18 5 1 . Message Errors 5 | . . . . 4 1 . . Matter Fused 3 | . . . . 3 . . . Heat Flow Errors 3 | . . . . 2 1 . . Energy Discharges 2 | . . . . 1 . 1 . Parts Rejected 1 | . . . . 1 . . . Parts Fused 1 | . . . . . 1 . . Data Loss (minor) 3 | . . . . 1 2 . . Data Loss (major) 1 | . . . . 1 . . . Misfires 3 | . . . . 3 . . . Misdirections 1 | . . . . 1 . . . Weapon Failures 1 | . . . . 1 . . . Overload Shots . | . . . . . . . . Overflow Damage 21 | . . . . 21 . . . Projectiles . | . . . . . . . . Explosions 21 | . . . . 21 . . . Melee . | . . . . . . . . Knockbacks 5 | . . . . . . . 5 Impact . | . . . . . . . . Kinetic 5 | . . . . . . . 5 Secondary . | . . . . . . . . Self-Inflicted Damage 116 | . . . . 116 . . . Shots 2 | . . . . 2 . . . Rammed . | . . . . . . . . Targets Rammed 26 | . . . . . . . 26 Kicked 26 | . . . . . . . 26 Crushed . | . . . . . . . . Highest Temperature 582 | 76 79 . . 582 227 . 6 Average Temperature 153 | 37 49 . . 194 76 . 4 Received Heat Transfer 1515 | 42 39 6 . 822 123 . 483 Effects 16 | . . . . 16 . . . Shutdowns 9 | . . . . 9 . . . Interference 2 | . . . . 2 . . . Short Circuit 1 | . . . . 1 . . . Damage (minor) 1 | . . . . 1 . . . Damage (major) 3 | . . . . 3 . . . Siege Activations . | . . . . . . . . Martial Activations . | . . . . . . . . Shielding Activations . | . . . . . . . . Robots Disrupted . | . . . . . . . . Combat Hostiles . | . . . . . . . . Robots Corrupted . | . . . . . . . . Combat Hostiles . | . . . . . . . . Parts Fried . | . . . . . . . . Impact Corruptions . | . . . . . . . . Robots Melted 3 | . . . . 3 . . . Combat Hostiles 3 | . . . . 3 . . . Parts Melted 10 | . . 1 . 9 . . . Heat Transferred 2605 | . . 150 . 2244 161 . 50 Parts Sabotaged . | . . . . . . . . Parts Stolen . | . . . . . . . . Parts Stripped . | . . . . . . . . Power Chain Reactions 1 | . . . . 1 . . . Alert | -11 -10 -10 -7 -5 -5 -5 -4 ------- Run | Yrd Mat Sub Scr Fac Upp Upp Fac Maximum Alert Level . | . . . . . . . . Low Security (%) 100 | 100 100 . . 100 . . 100 Level 1 . | . . . . . . . . Level 2 . | . . . . . . . . Level 3 . | . . . . . . . . Level 4 . | . . . . . . . . Level 5 . | . . . . . . . . High Security . | . . . . . . . . Max Security . | . . . . . . . . Peak Influence 183 | 20 110 . . 152 . . 183 Initial 6 | . 6 . . . . . . Average 32 | 4 31 . . 35 . . 26 Influence Increases 1208 | 30 120 . . 710 60 . 288 Destroy 0b10 Robot/C 480 | 20 100 . . 340 . . 20 Destroy 0b10 Robot/NC 25 | 10 . . . 10 . . 5 Destroy Leader 70 | . 20 . . 50 . . . Disable Machine 135 | . . . . 90 . . 45 Destroy Structure 108 | . . . . 70 . . 38 Partial Spotted 15 | . . . . . . . 15 Lose Combat Pursuer 375 | . . . . 150 60 . 165 Influence Decreases 1025 | 20 70 60 . 607 159 4 105 Entered New Map 74 | . 4 29 . . 39 2 . Time Decay 641 | 20 66 31 . 367 70 2 85 Lost Part 310 | . . . . 240 50 . 20 Squads Dispatched 7 | . 1 . . 4 . . 2 Investigation . | . . . . . . . . Extermination 3 | . . . . 3 . . . Reinforcement 4 | . 1 . . 1 . . 2 Assault . | . . . . . . . . Garrison . | . . . . . . . . Intercept . | . . . . . . . . Searches Triggered . | . . . . . . . . Construction Impeded . | . . . . . . . . Haulers Reinforced . | . . . . . . . . Active Scanning Responses . | . . . . . . . . Cargo Convoy Interrupts . | . . . . . . . . Stealth | -11 -10 -10 -7 -5 -5 -5 -4 --------- Run | Yrd Mat Sub Scr Fac Upp Upp Fac Distress Signals 1 | . . . . . . . 1 Communications Jammed . | . . . . . . . . Distress Signals . | . . . . . . . . Times Spotted 78 | 1 10 2 . 33 8 . 24 Peak Tracking Total 14 | 1 3 2 . 4 4 . 14 Tactical Retreats 13 | . . . . 7 1 . 5 Traps | -11 -10 -10 -7 -5 -5 -5 -4 ------- Run | Yrd Mat Sub Scr Fac Upp Upp Fac Traps Triggered 2 | . . . . 1 . . 1 Indirectly . | . . . . . . . . Trap Hack Attempts . | . . . . . . . . Triggered . | . . . . . . . . Disarmed . | . . . . . . . . Reprogrammed . | . . . . . . . . Reused . | . . . . . . . . Traps Extracted . | . . . . . . . . Installed . | . . . . . . . . Triggered . | . . . . . . . . Machines | -11 -10 -10 -7 -5 -5 -5 -4 ---------- Run | Yrd Mat Sub Scr Fac Upp Upp Fac Machines Disabled 9 | . . . . 6 . . 3 Max in Single Turn 4 | . . . . 4 . . 2 Machines Repaired . | . . . . . . . . Machines Dismantled . | . . . . . . . . Machines Sabotaged . | . . . . . . . . Overloaded Fab Kills . | . . . . . . . . Hacking | -11 -10 -10 -7 -5 -5 -5 -4 --------- Run | Yrd Mat Sub Scr Fac Upp Upp Fac Machines Accessed 1 | . 1 . . . . . . Terminals 1 | . 1 . . . . . . Fabricators . | . . . . . . . . Repair Stations . | . . . . . . . . Recycling Units . | . . . . . . . . Scanalyzers . | . . . . . . . . Garrison Access . | . . . . . . . . Total Hacks 1 | . 1 . . . . . . Successful 1 | . 1 . . . . . . Failed . | . . . . . . . . Catastrophic . | . . . . . . . . Database Lockouts . | . . . . . . . . Manual . | . . . . . . . . Terminals 1 | . 1 . . . . . . Fabricators . | . . . . . . . . Repair Stations . | . . . . . . . . Recycling Units . | . . . . . . . . Scanalyzers . | . . . . . . . . Garrison Access . | . . . . . . . . Terminal Hacks 1 | . 1 . . . . . . Record 1 | . 1 . . . . . . Fabricator Hacks . | . . . . . . . . Repair Station Hacks . | . . . . . . . . Recycling Unit Hacks . | . . . . . . . . Scanalyzer . | . . . . . . . . Garrison Access Hacks . | . . . . . . . . Unauthorized Hacks . | . . . . . . . . Terminals . | . . . . . . . . Fabricators . | . . . . . . . . Repair Stations . | . . . . . . . . Recycling Units . | . . . . . . . . Scanalyzers . | . . . . . . . . Garrison Access . | . . . . . . . . Data Cores Recovered 2 | . 2 . . . . . . Used . | . . . . . . . . Hacking Detections . | . . . . . . . . Full Trace Events . | . . . . . . . . Feedback Events . | . . . . . . . . Feedback Blocked . | . . . . . . . . Robot Schematics Acquired . | . . . . . . . . Robots Built . | . . . . . . . . Authchips . | . . . . . . . . Time . | . . . . . . . . Total Robot Build Rating . | . . . . . . . . Part Schematics Acquired . | . . . . . . . . Parts Built . | . . . . . . . . Authchips . | . . . . . . . . Time . | . . . . . . . . Total Part Build Rating . | . . . . . . . . Parts Repaired . | . . . . . . . . Time . | . . . . . . . . Parts Recycled . | . . . . . . . . Recycled Matter . | . . . . . . . . Retrieved Matter . | . . . . . . . . Retrieved Components . | . . . . . . . . Parts Scanalyzed . | . . . . . . . . Part Schematics Acquired . | . . . . . . . . Parts Damaged . | . . . . . . . . Bothacking | -11 -10 -10 -7 -5 -5 -5 -4 ------------ Run | Yrd Mat Sub Scr Fac Upp Upp Fac Used RIF Installer . | . . . . . . . . Robots Hacked . | . . . . . . . . Non-combat . | . . . . . . . . Combat . | . . . . . . . . Robot Hacks Applied . | . . . . . . . . Relay Couplers Released . | . . . . . . . . Fabnet Peak Effective % . | . . . . . . . . Robots Rewired . | . . . . . . . . Allies Hacked . | . . . . . . . . Hacks Repelled . | . . . . . . . . Allies | -11 -10 -10 -7 -5 -5 -5 -4 -------- Run | Yrd Mat Sub Scr Fac Upp Upp Fac Total Allies . | . . . . . . . . Largest Group . | . . . . . . . . Highest-Rated Group . | . . . . . . . . Highest-Rated Ally . | . . . . . . . . Total Orders . | . . . . . . . . Ally Attacks . | . . . . . . . . Total Damage . | . . . . . . . . Kills . | . . . . . . . . Allies Corrupted . | . . . . . . . . Allies Melted . | . . . . . . . . Intel | -11 -10 -10 -7 -5 -5 -5 -4 ------- Run | Yrd Mat Sub Scr Fac Upp Upp Fac Active Infowar (turns) 3161 | . 223 230 1682 1019 7 . . Optics 3161 | . 223 230 1682 1019 7 . . Robot Analysis Total . | . . . . . . . . Derelict Logs Recovered 1 | . . . . . 1 . . Drone Launches . | . . . . . . . . Drone Recoveries . | . . . . . . . . Exploration | -11 -10 -10 -7 -5 -5 -5 -4 ------------- Run | Yrd Mat Sub Scr Fac Upp Upp Fac Turns Passed 4277 | 112 310 230 1682 1420 143 28 352 Spaces Moved 2446 | 93 184 135 999 505 211 24 295 Core 387 | 26 . . . 17 175 . 169 Treads 9 | . . . . 9 . . . Legs 230 | . . . . 60 36 24 110 Wheels 289 | 67 125 . . 81 . . 16 Hover 160 | . . . . 160 . . . Flight 1371 | . 59 135 999 178 . . . Fastest Speed 37 | 50 80 120 37 95 50 120 50 Average Speed 146 | 71 92 120 165 213 61 120 95 Slowest Speed 1075 | 80 120 120 277 1075 120 120 250 Overloaded Moves . | . . . . . . . . Propulsion Burnouts . | . . . . . . . . Robots Hopped . | . . . . . . . . Potential Cave-ins . | . . . . . . . . Cave-ins Triggered . | . . . . . . . . Exploration Rate (%) 25 | 6 42 18 70 11 45 5 10 Regions Visited 7 Branch Regions 4 Pre-discovered Areas . | . . . . . . . . Known Exits Taken . | . . . . . . . . Unknown Exits Taken 7 | 1 1 1 1 1 1 1 . Scrap Searched 3 | . . . 2 . 1 . . Spaces Dug . | . . . . . . . . Terrain Destroyed 53 | . . . . 33 . . 20 Melee . | . . . . . . . . Projectile 4 | . . . . 1 . . 3 AOE 49 | . . . . 32 . . 17 Terrain Rammed . | . . . . . . . . Walls Destroyed . | . . . . . . . . Machines Disabled . | . . . . . . . . Actions | -11 -10 -10 -7 -5 -5 -5 -4 --------- Run | Yrd Mat Sub Scr Fac Upp Upp Fac Total 2968 | 123 316 194 1033 714 219 23 346 Wait 190 | . 97 46 9 38 . . . Move 2439 | 92 183 134 998 504 210 23 295 Hop . | . . . . . . . . Pick Up 79 | 12 12 3 9 34 3 . 6 Fast Attach . | . . . . . . . . Attach 54 | 5 2 . 2 36 3 . 6 Detach 2 | . . . 1 1 . . . Swap 14 | 3 4 1 3 3 . . . Drop 30 | 2 11 3 10 4 . . . Fire 132 | 9 7 7 . 93 3 . 13 Melee . | . . . . . . . . Ram 1 | . . . . 1 . . . Kick 26 | . . . . . . . 26 Crush . | . . . . . . . . Escape Stasis . | . . . . . . . . Rewire 1 | . . . 1 . . . . Trap . | . . . . . . . . Miscellaneous . | . . . . . . . . Route ------- -11/Scrapyard -10/Materials (discovered 2 exits: [*Mat] / [*Sub]) -10/Subcaves -7/Scraptown -5/Factory (discovered 2 exits: [*Fac] / [*Upp]) -5/Upper Caves -5/Upper Caves -4/Factory History --------- Turn | Location | Event 2 | -11/Scrapyard | Met Revision 17 62 | -11/Scrapyard | Discovered new exit (range 8) 113 | -11/Scrapyard | Entered Materials 114 | -10/Materials | Met a group of wandering Federalists 206 | -10/Materials | Discovered new exit (range 7) 420 | -10/Materials | Lost 3 allies 421 | -10/Materials | Discovered new exit (range 3) 423 | -10/Materials | Entered Subcaves 423 | -10/Subcaves | Accompanied by 1 ally 424 | -10/Subcaves | Continued accompanying wandering Federalists (2) 461 | -10/Subcaves | Build established: Scavenger-Mutant 506 | -10/Subcaves | Shifting Twisted Machinery released Sub. Power Source 509 | -10/Subcaves | Shifting Twisted Machinery released Sub. Shrapnel Launcher 626 | -10/Subcaves | Wandering Federalist uncovered a shortcut to Scraptown 653 | -10/Subcaves | Entered Scraptown 859 | -7/Scraptown | Visited Red Mages 896 | -7/Scraptown | Visited Fellowship of the Rings 937 | -7/Scraptown | Visited UFD Registry 937 | -7/Scraptown | Registered with UFD as "Deathripper" 983 | -7/Scraptown | Visited Cartography Club 1033 | -7/Scraptown | Visited Science Guys 1082 | -7/Scraptown | Visited Abandonware Association 1102 | -7/Scraptown | Visited Junk Repository 1133 | -7/Scraptown | Visited Junk Repository 1207 | -7/Scraptown | Visited Scrap Suit Storage 1232 | -7/Scraptown | Found Scrap Suit 1575 | -7/Scraptown | Build established: Mutant 1599 | -7/Scraptown | Visited Scrapoid Research Area 1717 | -7/Scraptown | Visited Curators Association 2127 | -7/Scraptown | Met Optimus 2127 | -7/Scraptown | Accepted into 0bPrime 2327 | -7/Scraptown | Discovered new exit (range 3) 2335 | -7/Scraptown | Entered Factory 2335 | -5/Factory | Evolved 10 slots: Power x2, Propulsion x2, Utility x3, Weapon x3 2576 | -5/Factory | Lost 6 parts (2n1u3w) 3084 | -5/Factory | Lost 4 parts (2n1u1w) 3221 | -5/Factory | Build established: Scavenger-Skirmisher 3398 | -5/Factory | Lost 9 parts (3p2n4w) 3478 | -5/Factory | Lost 4 parts (2n2w) 3607 | -5/Factory | Core integrity fell below 50% 3614 | -5/Factory | System corruption reached 10% 3637 | -5/Factory | Lost 3 parts (2n1w) 3647 | -5/Factory | Build established: Scavenger-Mutant 3709 | -5/Factory | Discovered new exit (range 11) 3740 | -5/Factory | Discovered new exit (range 7) 3755 | -5/Factory | Entered Upper Caves 3762 | -5/Upper Caves | Released all parts (5) 3774 | -5/Upper Caves | Learned Factory stockpile data 3792 | -5/Upper Caves | Lost 4 parts (1p2n1w) 3875 | -5/Upper Caves | Core integrity fell below 20% 3888 | -5/Upper Caves | Discovered new exit (range 8) 3898 | -5/Upper Caves | Entered another Upper Caves area 3919 | -5/Upper Caves | Discovered new exit (range 7) 3926 | -5/Upper Caves | Entered Factory 3926 | -4/Factory | Evolved 2 slots: Power x2 4069 | -4/Factory | Build established: Mutant 4218 | -4/Factory | Core integrity fell below 50% 4231 | -4/Factory | Core integrity fell below 20% 4278 | -4/Factory | Destroyed by G-67 Veteran with Plasma Rifle Last Messages --------------- Knocked back. U-05 Engineer works on Subcomponent Replicator. Slug penetrates H-71 Marshal. Penetrated by Slug. Enh. Gauss Cannon destroyed. Knocked back. K-01 Serf collects debris. Knocked back. K-01 Serf collects debris. Critical hit (Burn: +50). K-01 Serf collects debris. Triggered Ambush Trap. B-60 Warrior emerges from a hatch in the floor. S-27 Virus emerges from a hatch in the floor. G-67 Veteran emerges from a hatch in the floor. Acquired Centrium Wheel. Acquired Neutrino Core. Acquired Energy Well. [Achievement: First Step to Greatness] [Achievement: 5k Club] Map ----- +----------------------------------------------------+ | ?????????????????????????????????????????????????? | | ?????????????????????????????????????????????????? | | ?????????????????????????????????????????????????? | | ?????????????????????????????????????????????????? | | ?????????????????????????????????????????????????? | | ??????????????????????????????????????!??????????? | | ?????????????????????????????????????????????????? | | ?????????????????????????????????????????????????? | | ?????????????????????????????????????????????????? | | ?????????????????????????????????????????????????? | | ?????????????????????????????????????????????????? | | ?????????????????????????????????????????????????? | | ?????????????????????????????????????????????????? | | ?????????????????????????????????????????????????? | | ?????????????????????????????????????????????????? | | ?????????????????????????????????????????????????? | | ????????????????##############????=??????????????? | | ????????????????# """"" #???????????????????? | | ????????????????# ""T"" #???????????????????? | | ????????????????# #???????????????????? | | ????????????????# """"""""" #???????????????????? | | ????????????????# s #???????????????????? | | ????????????##########g#######???????????????????? | | ????????????# # l #???????????????????????? | | ????????????# """ # #####???????????????????? | | ????????????# """ + " @ +???????????????????? | | ????????????# """ # g #####???????????????????? | | ????????????# # b #???????????????????????? | | ????????????# ### ###???????????????????????? | | ????????????########?# #?????????????????????????? | | ?????????????????????# #?????????????????????????? | | ?????????????????????# #?????????????????????????? | | ?????????????????????# #?????????????????????????? | | ?????????############# ####??????????????????????? | | ########## #??????????????????????? | | #??????????????????????? | | """ """ """ #??????????????????????? | | """ """ """ #??????????????????????? | | """ """ """ #??????????????????????? | | % "" "" "" #?????????????? ???????? | | ?######### "" "" "" #?????????????# #??????? | | ????????## #?????????????# #??????? | | ????????#" """ """ """ ############### ###????? | | ????????## """ """ """ #? ??? | | ?????????# " "" """ # ??? | | ?????????# "" " "" ##+##+ | | ?????????# "" " "" ? | | ?????????# #?? | | ?????????# % % ### | | ?????????# % | +----------------------------------------------------+ Best States ------------- Heat Dissipation 68 Energy Generation 33 Energy Capacity 665 Matter Stores 300 Matter Capacity 300 Sight Range 18 Terrain Scan Density 10 Weapon Cycling 20 Melee Speed Boost 20 Evasion (%) 62 Recoil Reduction 1 Kinecelleration 40 Offensive Hacking 10 Item Schematics ----------------- None Robot Schematics ------------------ None Fabricated ------------ Nothing Repaired ---------- Nothing Alien Tech Used ----------------- None Achievements -------------- 5k Club Crack Shot First Step to Greatness It's Just You Made in Tau Ceti IV Risk Taker Serviceable Loadout Storm Trooper System Compromised Tourist Uninvited Guest Universal Adapter Use The Force Challenges ------------ None Game ------ Seed BarrageInertialBlaster Manual? 0 Play Time 01:03:13 Cumulative 1.0 hours Start 2025.07.30 @ 12:57:44 End 2025.07.30 @ 14:04:40 Sessions 1 Manual Loads 0 Difficulty Rogue Special Mode None Game No. 1 Rogue 1 Adventurer 0 Explorer 0 Win Type - Total 0 Types 0/0/0/0/0/0/0/0/0/0 Lore% 2 Gallery% 3 Achievement% 5 Wizard Run 0 Options --------- Layout 1 ASCII 0 Keyboard 0 Movement Mouse Keybinds 0 Fullscreen 1 Font 24/Smallcaps Map View 50x35 Zoom Use 0% Tactical HUD 0 Map Filters NONE Filters NONE Steam 1 RUN: 6cebdec7-604d-4f2a-9fbd-8588ccb20264